{"text_format":"1","workbook":"xlsx","n_sheets":4,"sheets":["提出用","提出用写","入力用","提出用控"],"not_rendered":{"charts":0,"images":5,"macros":1,"external_links":0,"defined_names":3,"comments":0,"pivot_tables":0},"unopened":[],"bounds":{"document_bytes":16777216,"sheet_cells":100000,"rows_first":2000,"rows_last":500,"rows_between":2000,"halvings":0,"cell_chars":16384,"cell_head_chars":4096},"cells_cut":0,"cells_raw":0,"read":"whole","date_system":"1900"}

{"sheet":"提出用","index":0,"n_rows":106,"n_cols":122,"rows_kept":106,"cut":false,"hidden":false,"merged":[[24,16,26,21],[19,6,20,7],[24,1,26,15],[25,88,25,135],[28,88,28,135],[31,88,31,135],[34,88,34,135],[27,16,29,21],[42,1,44,15],[43,88,43,135],[27,1,29,15],[30,1,32,15],[33,1,35,15],[36,1,38,15],[39,1,41,15],[48,16,50,21],[51,121,51,135],[51,92,51,120],[51,1,52,21],[12,3,13,9],[15,3,17,9],[12,1,17,2],[16,10,16,135],[12,10,12,135],[45,1,47,15],[14,3,14,9],[45,16,47,21],[42,16,44,21],[39,16,41,21],[36,16,38,21],[33,16,35,21],[30,16,32,21],[19,12,21,14],[14,10,14,117],[19,3,21,5],[19,15,21,49],[20,100,21,105],[19,50,21,83],[48,1,50,15],[4,85,4,87],[4,97,4,99],[4,100,4,102],[4,103,4,105],[5,23,5,26],[5,15,5,22],[3,46,3,63],[3,73,3,78],[19,10,20,11],[6,1,9,39],[5,12,5,13],[13,10,13,63],[13,64,13,74],[13,75,13,89],[19,8,21,9],[13,90,13,93],[13,94,13,108],[10,118,11,135],[52,22,52,42],[10,82,11,99],[10,64,11,81],[10,46,11,63],[52,84,52,135],[52,43,52,83],[46,88,46,135],[49,88,49,135],[10,100,11,117],[2,40,11,45],[3,79,4,81],[2,79,2,81],[5,35,5,38],[5,27,5,34],[4,106,4,108],[4,109,4,111],[13,109,13,112],[51,76,51,91],[51,22,51,75],[37,88,37,135],[40,88,40,135],[7,46,9,81],[7,100,8,135],[3,124,3,126],[3,127,3,129],[3,130,3,132],[3,133,3,135],[4,121,4,123],[5,100,6,135],[4,127,4,129],[4,133,4,135],[4,130,4,132],[2,118,2,135],[4,88,4,90],[4,91,4,93],[4,94,4,96],[4,115,4,117],[15,10,15,135],[13,113,13,127],[13,128,13,135],[3,118,3,120],[3,121,3,123],[3,82,3,111],[3,112,3,114],[3,115,3,117],[2,46,2,63],[3,64,3,72],[2,64,2,72],[2,73,2,78],[2,112,2,117],[2,82,2,111],[4,124,4,126],[7,82,9,99],[6,82,6,99],[6,46,6,81],[5,46,5,99]]}
[]
[]
[null,null,null,null,null,null,null,null,null,null,null,null,null,null,null,null,null,null,null,null,null,null,null,null,null,null,null,null,null,null,null,null,null,null,null,null,null,null,null,null,"※処理事項",null,null,null,null,null,"整理番号",null,null,null,null,null,null,null,null,null,null,null,null,null,null,null,null,null,"事務所",null,null,null,null,null,null,null,null,"処理\n区分",null,null,null,null,null,"区分",null,null,"事業者コード",null,null,null,null,null,null,null,null,null,null,null,null,null,null,null,null,null,null,null,null,null,null,null,null,null,null,null,null,null,"申告\n区分",null,null,null,null,null,"予備"]
[null,null,null,null,null,null,null,null,null,null,null,null,null,null,null,null,null,null,null,null,null,null,null,null,null,null,null,null,null,null,null,null,null,null,null,null,null,null,null,null,null,null,null,null,null,null,null,null,null,null,null,null,null,null,null,null,null,null,null,null,null,null,null,null,null,null,null,null,null,null,null,null,null,null,null,null,null,null,null,null,null,null,null,null,null,null,null,null,null,null,null,null,null,null,null,null,null,null,null,null,null,null,null,null,null,null,null,null,null,null,null,null,null,null,null,null,null,null,1,null,null,3]
[]
[null,null,null,null,null,null,null,null,null,null,null,"令和",null,null,"年",null,null,null,null,null,null,null,null,"月",null,null,null,null,null,null,null,null,null,null,null,"日",null,null,null,null,null,null,null,null,null,null,"発信年月日",null,null,null,null,null,null,null,null,null,null,null,null,null,null,null,null,null,null,null,null,null,null,null,null,null,null,null,null,null,null,null,null,null,null,null,null,null,null,null,null,null,null,null,null,null,null,null,null,null,null,null,null,null,"申 告 年 月 日"]
[null,null,null,null,null,null,null,null,null,null,null,null,null,null,null,null,null,null,null,null,null,null,null,null,null,null,null,null,null,null,null,null,null,null,null,null,null,null,null,null,null,null,null,null,null,null,"通信日付印",null,null,null,null,null,null,null,null,null,null,null,null,null,null,null,null,null,null,null,null,null,null,null,null,null,null,null,null,null,null,null,null,null,null,null,"確認印"]
[]
[]
[]
[null,null,null,null,null,null,null,null,null,null,null,null,null,null,null,null,null,null,null,null,null,null,null,null,null,null,null,null,null,null,null,null,null,null,null,null,null,null,null,"東京都　港　都税事務所長殿"]
[]
[null,"申告者",null,"住所又は所在地"]
[null,null,null,null,null,null,null,null,null,null,null,null,null,null,null,null,null,null,null,null,null,null,null,null,null,null,null,null,null,null,null,null,null,null,null,null,null,null,null,null,null,null,null,null,null,null,null,null,null,null,null,null,null,null,null,null,null,null,null,null,null,null,null,null,"電話（",null,null,null,null,null,null,null,null,null,null,null,null,null,null,null,null,null,null,null,null,null,null,null,null,null,")",null,null,null,null,null,null,null,null,null,null,null,null,null,null,null,null,null,null,"-"]
[null,null,null,"氏名又は名称"]
[null,null,null,"個人番号\n又　は\n法人番号",null,null,null,null,null,null,"　　　　　　　↓個人番号の記載に当たっては、左端を空欄とし、ここから記載してください。"]
[]
[]
[]
[null,null,null,"令和",null,null,null,null,"年",null,null,null,"月分",null,null,"都たばこ税の",null,null,null,null,null,null,null,null,null,null,null,null,null,null,null,null,null,null,null,null,null,null,null,null,null,null,null,null,null,null,null,null,null,null,"申告書"]
[null,null,null,null,null,null,null,null,null,null,null,null,null,null,null,null,null,null,null,null,null,null,null,null,null,null,null,null,null,null,null,null,null,null,null,null,null,null,null,null,null,null,null,null,null,null,null,null,null,null,null,null,null,null,null,null,null,null,null,null,null,null,null,null,null,null,null,null,null,null,null,null,null,null,null,null,null,null,null,null,null,null,null,null,null,null,null,null,null,null,null,null,null,null,null,null,null,null,null,null,"※"]
[]
[]
[]
[null,"課税標準数量",null,null,null,null,null,null,null,null,null,null,null,null,null,null,"①"]
[]
[]
[null,"税額",null,null,null,null,null,null,null,null,null,null,null,null,null,null,"②"]
[null,null,null,null,null,null,null,null,null,null,null,null,null,null,null,null,null,null,null,null,null,null,null,null,null,null,null,null,null,null,null,null,null,null,null,null,null,null,null,null,null,null,null,null,null,null,null,null,null,null,null,null,null,null,null,null,null,null,null,null,null,null,null,null,null,null,null,null,null,null,null,null,null,null,null,null,null,null,null,null,null,null,null,null,null,null,null,null,{"$f":"IF(CK26=\"\",\"\",ROUNDDOWN(CK26*(1070/1000),0))","v":""}]
[]
[null,"課税免除を受けようとする本数"]
[]
[]
[null,"課税免除を受けようとする税額",null,null,null,null,null,null,null,null,null,null,null,null,null,null,"③"]
[null,null,null,null,null,null,null,null,null,null,null,null,null,null,null,null,null,null,null,null,null,null,null,null,null,null,null,null,null,null,null,null,null,null,null,null,null,null,null,null,null,null,null,null,null,null,null,null,null,null,null,null,null,null,null,null,null,null,null,null,null,null,null,null,null,null,null,null,null,null,null,null,null,null,null,null,null,null,null,null,null,null,null,null,null,null,null,null,{"$f":"IF(CK32=\"\",\"\",ROUNDDOWN(CK32*(1070/1000),0))","v":""}]
[]
[null,"返還控除を受けようとする本数"]
[]
[]
[null,"返還控除を受けようとする金額",null,null,null,null,null,null,null,null,null,null,null,null,null,null,"④"]
[null,null,null,null,null,null,null,null,null,null,null,null,null,null,null,null,null,null,null,null,null,null,null,null,null,null,null,null,null,null,null,null,null,null,null,null,null,null,null,null,null,null,null,null,null,null,null,null,null,null,null,null,null,null,null,null,null,null,null,null,null,null,null,null,null,null,null,null,null,null,null,null,null,null,null,null,null,null,null,null,null,null,null,null,null,null,null,null,{"$f":"IF(CK38=\"\",\"\",ROUNDDOWN(CK38*(1070/1000),0))","v":""}]
[]
[null,"差引（ ② － ③ － ④ ）",null,null,null,null,null,null,null,null,null,null,null,null,null,null,"➄"]
[null,null,null,null,null,null,null,null,null,null,null,null,null,null,null,null,null,null,null,null,null,null,null,null,null,null,null,null,null,null,null,null,null,null,null,null,null,null,null,null,null,null,null,null,null,null,null,null,null,null,null,null,null,null,null,null,null,null,null,null,null,null,null,null,null,null,null,null,null,null,null,null,null,null,null,null,null,null,null,null,null,null,null,null,null,null,null,null,{"$f":"IF(CK35=\"\",IF(CK41=\"\",CK29,CK29-CK41),IF(CK41=\"\",CK29-CK35,CK29-CK35-CK41))","v":""}]
[]
[null,"既 に 納 付 又 は 還 付 の\n確 定 し た 税 額 又 は 金 額",null,null,null,null,null,null,null,null,null,null,null,null,null,null,"⑥"]
[]
[]
[null,"この申告により納付すべき税額又は還付を\n受けようとする金額　（ ➄－ ⑥ ）"]
[null,null,null,null,null,null,null,null,null,null,null,null,null,null,null,null,null,null,null,null,null,null,null,null,null,null,null,null,null,null,null,null,null,null,null,null,null,null,null,null,null,null,null,null,null,null,null,null,null,null,null,null,null,null,null,null,null,null,null,null,null,null,null,null,null,null,null,null,null,null,null,null,null,null,null,null,null,null,null,null,null,null,null,null,null,null,null,null,{"$f":"IF(CK44=\"\",\"\",CK44-CK47)","v":""}]
[]
[null,"還付を受けようとする金融機関及び支払方法",null,null,null,null,null,null,null,null,null,null,null,null,null,null,null,null,null,null,null,null,null,null,null,null,null,null,null,null,null,null,null,null,null,null,null,null,null,null,null,null,null,null,null,null,null,null,null,null,null,null,null,null,null,null,null,null,null,null,null,null,null,null,null,null,null,null,null,null,null,null,null,null,null,null,"銀行",null,null,null,null,null,null,null,null,null,null,null,null,null,null,null,null,null,null,null,null,null,null,null,null,null,null,null,null,null,null,null,null,null,null,null,null,null,null,null,null,null,null,null,null,"支店"]
[null,null,null,null,null,null,null,null,null,null,null,null,null,null,null,null,null,null,null,null,null,null,"口座番号",null,null,null,null,null,null,null,null,null,null,null,null,null,null,null,null,null,null,null,null,"（　普通　・　当座　）"]
[]
[]
[]
[]
[]
[]
[]
[]
[]
[]
[]
[]
[]
[]
[]
[]
[]
[]
[]
[]
[]
[]
[]
[]
[]
[]
[]
[]
[]
[]
[]
[]
[]
[]
[]
[]
[]
[]
[]
[]
[]
[]
[]
[]
[]
[]
[]
[]
[]
[]
[]
[null,"申告書"]
[null,"修正申告書"]

{"sheet":"提出用写","index":1,"n_rows":53,"n_cols":122,"rows_kept":53,"cut":false,"hidden":true,"merged":[[48,16,50,21],[45,16,47,21],[42,16,44,21],[39,16,41,21],[36,16,38,21],[33,16,35,21],[30,16,32,21],[27,16,29,21],[5,12,5,13],[5,15,5,22],[42,1,44,15],[15,10,15,135],[12,1,17,2],[12,10,12,135],[14,10,14,117],[12,3,13,9],[14,3,14,9],[15,3,17,9],[19,3,21,5],[19,6,20,7],[19,8,21,9],[19,50,21,83],[19,12,21,14],[19,15,21,49],[5,23,5,26],[2,79,2,81],[2,73,2,78],[2,64,2,72],[2,46,2,63],[3,79,4,81],[3,73,3,78],[3,64,3,72],[3,46,3,63],[5,27,5,34],[2,40,11,45],[24,16,26,21],[3,127,3,129],[3,130,3,132],[3,133,3,135],[51,1,52,21],[51,22,51,75],[51,76,51,91],[51,92,51,120],[51,121,51,135],[52,22,52,42],[46,88,46,135],[45,1,47,15],[48,1,50,15],[52,84,52,135],[52,43,52,83],[49,88,49,135],[43,88,43,135],[40,88,40,135],[30,1,32,15],[33,1,35,15],[36,1,38,15],[39,1,41,15],[31,88,31,135],[34,88,34,135],[37,88,37,135],[4,127,4,129],[4,130,4,132],[4,133,4,135],[27,1,29,15],[24,1,26,15],[25,88,25,135],[19,10,20,11],[5,35,5,38],[5,46,5,99],[5,100,6,135],[6,46,6,81],[6,82,6,99],[7,46,9,81],[7,82,9,99],[7,100,8,135],[10,46,11,63],[10,64,11,81],[10,82,11,99],[10,100,11,117],[10,118,11,135],[13,75,13,89],[13,94,13,108],[13,113,13,127],[28,88,28,135],[20,100,21,105],[16,10,16,135],[3,82,3,111],[2,82,2,111],[4,103,4,105],[4,106,4,108],[4,109,4,111],[4,100,4,102],[4,97,4,99],[4,94,4,96],[4,91,4,93],[4,88,4,90],[4,85,4,87],[4,115,4,117],[4,121,4,123],[4,124,4,126],[3,112,3,114],[3,115,3,117],[2,112,2,117],[2,118,2,135],[3,124,3,126],[3,118,3,120],[3,121,3,123]]}
[]
[]
[null,null,null,null,null,null,null,null,null,null,null,null,null,null,null,null,null,null,null,null,null,null,null,null,null,null,null,null,null,null,null,null,null,null,null,null,null,null,null,null,"※処理事項",null,null,null,null,null,"整理番号",null,null,null,null,null,null,null,null,null,null,null,null,null,null,null,null,null,"事務所",null,null,null,null,null,null,null,null,"処理\n区分",null,null,null,null,null,"区分",null,null,"事業者コード",null,null,null,null,null,null,null,null,null,null,null,null,null,null,null,null,null,null,null,null,null,null,null,null,null,null,null,null,null,"申告\n区分",null,null,null,null,null,"予備"]
[null,null,null,null,null,null,null,null,null,null,null,null,null,null,null,null,null,null,null,null,null,null,null,null,null,null,null,null,null,null,null,null,null,null,null,null,null,null,null,null,null,null,null,null,null,null,null,null,null,null,null,null,null,null,null,null,null,null,null,null,null,null,null,null,null,null,null,null,null,null,null,null,null,null,null,null,null,null,null,null,null,null,{"$f":"IF(提出用!CE4=\"\",\"\",提出用!CE4)","v":""},null,null,null,null,null,null,null,null,null,null,null,null,null,null,null,null,null,null,null,null,null,null,null,null,null,null,null,null,null,null,null,null,null,null,null,1,null,null,3]
[]
[null,null,null,null,null,null,null,null,null,null,null,"令和",{"$f":"IF(提出用!M6=\"\",\"\",提出用!M6)","v":""},null,"年",{"$f":"IF(提出用!P6=\"\",\"\",提出用!P6)","v":""},null,{"$f":"IF(提出用!R6=\"\",\"\",提出用!R6)","v":""},null,{"$f":"IF(提出用!T6=\"\",\"\",提出用!T6)","v":""},null,{"$f":"IF(提出用!V6=\"\",\"\",提出用!V6)","v":""},null,"月",null,null,null,{"$f":"IF(提出用!AB6=\"\",\"\",提出用!AB6)","v":""},null,null,null,null,null,null,null,"日",null,null,null,null,null,null,null,null,null,null,"発信年月日",null,null,null,null,null,null,null,null,null,null,null,null,null,null,null,null,null,null,null,null,null,null,null,null,null,null,null,null,null,null,null,null,null,null,null,null,null,null,null,null,null,null,null,null,null,null,null,null,null,null,null,null,null,"申 告 年 月 日"]
[null,null,null,null,null,null,null,null,null,null,null,null,null,null,null,null,null,null,null,null,null,null,null,null,null,null,null,null,null,null,null,null,null,null,null,null,null,null,null,null,null,null,null,null,null,null,"通信日付印",null,null,null,null,null,null,null,null,null,null,null,null,null,null,null,null,null,null,null,null,null,null,null,null,null,null,null,null,null,null,null,null,null,null,null,"確認印"]
[]
[]
[]
[null,null,null,null,null,null,null,null,null,null,null,null,null,null,null,null,null,null,null,null,null,null,null,null,null,null,null,null,null,null,null,null,null,null,null,null,null,null,null,"東京都　港　都税事務所長殿"]
[]
[null,"申告者",null,"住所又は所在地",null,null,null,null,null,null,{"$f":"IF(提出用!K13=\"\",\"\",提出用!K13)","v":""}]
[null,null,null,null,null,null,null,null,null,null,null,null,null,null,null,null,null,null,null,null,null,null,null,null,null,null,null,null,null,null,null,null,null,null,null,null,null,null,null,null,null,null,null,null,null,null,null,null,null,null,null,null,null,null,null,null,null,null,null,null,null,null,null,null,"電話（",null,null,null,null,null,null,null,null,null,null,{"$f":"IF(提出用!BX14=\"\",\"\",提出用!BX14)","v":""},null,null,null,null,null,null,null,null,null,null,null,null,null,null,")",null,null,null,{"$f":"IF(提出用!CQ14=\"\",\"\",提出用!CQ14)","v":""},null,null,null,null,null,null,null,null,null,null,null,null,null,null,"-",null,null,null,{"$f":"IF(提出用!DJ14=\"\",\"\",提出用!DJ14)","v":""}]
[null,null,null,"氏名又は名称",null,null,null,null,null,null,{"$f":"IF(提出用!K15=\"\",\"\",提出用!K15)","v":""}]
[null,null,null,"個人番号\n又　は\n法人番号",null,null,null,null,null,null,"　　　　　　　↓個人番号の記載に当たっては、左端を空欄とし、ここから記載してください。"]
[null,null,null,null,null,null,null,null,null,null,{"$f":"IF(提出用!K17=\"\",\"\",提出用!K17)","v":""}]
[]
[]
[null,null,null,"令和",null,null,{"$f":"IF(提出用!G20=\"\",\"\",提出用!G20)","v":""},null,"年",null,{"$f":"IF(提出用!K20=\"\",\"\",提出用!K20)","v":""},null,"月分",null,null,"都たばこ税の",null,null,null,null,null,null,null,null,null,null,null,null,null,null,null,null,null,null,null,null,null,null,null,null,null,null,null,null,null,null,null,null,null,null,{"$f":"IF(提出用!AY20=\"\",\"\",提出用!AY20)","v":"申告書"}]
[null,null,null,null,null,null,null,null,null,null,null,null,null,null,null,null,null,null,null,null,null,null,null,null,null,null,null,null,null,null,null,null,null,null,null,null,null,null,null,null,null,null,null,null,null,null,null,null,null,null,null,null,null,null,null,null,null,null,null,null,null,null,null,null,null,null,null,null,null,null,null,null,null,null,null,null,null,null,null,null,null,null,null,null,null,null,null,null,null,null,null,null,null,null,null,null,null,null,null,null,"※"]
[]
[]
[]
[null,"課税標準数量",null,null,null,null,null,null,null,null,null,null,null,null,null,null,"①"]
[null,null,null,null,null,null,null,null,null,null,null,null,null,null,null,null,null,null,null,null,null,null,null,null,null,null,null,null,null,null,null,null,null,null,null,null,null,null,null,null,null,null,null,null,null,null,null,null,null,null,null,null,null,null,null,null,null,null,null,null,null,null,null,null,null,null,null,null,null,null,null,null,null,null,null,null,null,null,null,null,null,null,null,null,null,null,null,null,{"$f":"IF(提出用!CK26=\"\",\"\",提出用!CK26)","v":""}]
[]
[null,"税額",null,null,null,null,null,null,null,null,null,null,null,null,null,null,"②"]
[null,null,null,null,null,null,null,null,null,null,null,null,null,null,null,null,null,null,null,null,null,null,null,null,null,null,null,null,null,null,null,null,null,null,null,null,null,null,null,null,null,null,null,null,null,null,null,null,null,null,null,null,null,null,null,null,null,null,null,null,null,null,null,null,null,null,null,null,null,null,null,null,null,null,null,null,null,null,null,null,null,null,null,null,null,null,null,null,{"$f":"IF(提出用!CK29=\"\",\"\",提出用!CK29)","v":""}]
[]
[null,"課税免除を受けようとする本数"]
[null,null,null,null,null,null,null,null,null,null,null,null,null,null,null,null,null,null,null,null,null,null,null,null,null,null,null,null,null,null,null,null,null,null,null,null,null,null,null,null,null,null,null,null,null,null,null,null,null,null,null,null,null,null,null,null,null,null,null,null,null,null,null,null,null,null,null,null,null,null,null,null,null,null,null,null,null,null,null,null,null,null,null,null,null,null,null,null,{"$f":"IF(提出用!CK32=\"\",\"\",提出用!CK32)","v":""}]
[]
[null,"課税免除を受けようとする税額",null,null,null,null,null,null,null,null,null,null,null,null,null,null,"③"]
[null,null,null,null,null,null,null,null,null,null,null,null,null,null,null,null,null,null,null,null,null,null,null,null,null,null,null,null,null,null,null,null,null,null,null,null,null,null,null,null,null,null,null,null,null,null,null,null,null,null,null,null,null,null,null,null,null,null,null,null,null,null,null,null,null,null,null,null,null,null,null,null,null,null,null,null,null,null,null,null,null,null,null,null,null,null,null,null,{"$f":"IF(提出用!CK35=\"\",\"\",提出用!CK35)","v":""}]
[]
[null,"返還控除を受けようとする本数"]
[null,null,null,null,null,null,null,null,null,null,null,null,null,null,null,null,null,null,null,null,null,null,null,null,null,null,null,null,null,null,null,null,null,null,null,null,null,null,null,null,null,null,null,null,null,null,null,null,null,null,null,null,null,null,null,null,null,null,null,null,null,null,null,null,null,null,null,null,null,null,null,null,null,null,null,null,null,null,null,null,null,null,null,null,null,null,null,null,{"$f":"IF(提出用!CK38=\"\",\"\",提出用!CK38)","v":""}]
[]
[null,"返還控除を受けようとする金額",null,null,null,null,null,null,null,null,null,null,null,null,null,null,"④"]
[null,null,null,null,null,null,null,null,null,null,null,null,null,null,null,null,null,null,null,null,null,null,null,null,null,null,null,null,null,null,null,null,null,null,null,null,null,null,null,null,null,null,null,null,null,null,null,null,null,null,null,null,null,null,null,null,null,null,null,null,null,null,null,null,null,null,null,null,null,null,null,null,null,null,null,null,null,null,null,null,null,null,null,null,null,null,null,null,{"$f":"IF(提出用!CK41=\"\",\"\",提出用!CK41)","v":""}]
[]
[null,"差引（ ② － ③ － ④ ）",null,null,null,null,null,null,null,null,null,null,null,null,null,null,"➄"]
[null,null,null,null,null,null,null,null,null,null,null,null,null,null,null,null,null,null,null,null,null,null,null,null,null,null,null,null,null,null,null,null,null,null,null,null,null,null,null,null,null,null,null,null,null,null,null,null,null,null,null,null,null,null,null,null,null,null,null,null,null,null,null,null,null,null,null,null,null,null,null,null,null,null,null,null,null,null,null,null,null,null,null,null,null,null,null,null,{"$f":"IF(提出用!CK44=\"\",\"\",提出用!CK44)","v":""}]
[]
[null,"既 に 納 付 又 は 還 付 の\n確 定 し た 税 額 又 は 金 額",null,null,null,null,null,null,null,null,null,null,null,null,null,null,"⑥"]
[null,null,null,null,null,null,null,null,null,null,null,null,null,null,null,null,null,null,null,null,null,null,null,null,null,null,null,null,null,null,null,null,null,null,null,null,null,null,null,null,null,null,null,null,null,null,null,null,null,null,null,null,null,null,null,null,null,null,null,null,null,null,null,null,null,null,null,null,null,null,null,null,null,null,null,null,null,null,null,null,null,null,null,null,null,null,null,null,{"$f":"IF(提出用!CK47=\"\",\"\",提出用!CK47)","v":""}]
[]
[null,"この申告により納付すべき税額又は還付を\n受けようとする金額　（ ➄－ ⑥ ）"]
[null,null,null,null,null,null,null,null,null,null,null,null,null,null,null,null,null,null,null,null,null,null,null,null,null,null,null,null,null,null,null,null,null,null,null,null,null,null,null,null,null,null,null,null,null,null,null,null,null,null,null,null,null,null,null,null,null,null,null,null,null,null,null,null,null,null,null,null,null,null,null,null,null,null,null,null,null,null,null,null,null,null,null,null,null,null,null,null,{"$f":"IF(提出用!CK50=\"\",\"\",提出用!CK50)","v":""}]
[]
[null,"還付を受けようとする金融機関及び支払方法",null,null,null,null,null,null,null,null,null,null,null,null,null,null,null,null,null,null,null,null,{"$f":"IF(提出用!W52=\"\",\"\",提出用!W52)","v":""},null,null,null,null,null,null,null,null,null,null,null,null,null,null,null,null,null,null,null,null,null,null,null,null,null,null,null,null,null,null,null,null,null,null,null,null,null,null,null,null,null,null,null,null,null,null,null,null,null,null,null,null,null,"銀行",null,null,null,null,null,null,null,null,null,null,null,null,null,null,null,{"$f":"IF(提出用!CO52=\"\",\"\",提出用!CO52)","v":""},null,null,null,null,null,null,null,null,null,null,null,null,null,null,null,null,null,null,null,null,null,null,null,null,null,null,null,null,"支店"]
[null,null,null,null,null,null,null,null,null,null,null,null,null,null,null,null,null,null,null,null,null,null,"口座番号",null,null,null,null,null,null,null,null,null,null,null,null,null,null,null,null,null,null,null,null,{"$f":"IF(提出用!AR53=\"\",\"\",提出用!AR53)","v":"（　普通　・　当座　）"},null,null,null,null,null,null,null,null,null,null,null,null,null,null,null,null,null,null,null,null,null,null,null,null,null,null,null,null,null,null,null,null,null,null,null,null,null,null,null,null,{"$f":"IF(提出用!CG53=\"\",\"\",提出用!CG53)","v":""}]

{"sheet":"入力用","index":2,"n_rows":49,"n_cols":122,"rows_kept":49,"cut":false,"hidden":false,"merged":[[48,88,49,135],[45,88,46,135],[42,88,43,135],[39,88,40,135],[36,88,37,135],[33,88,34,135],[45,28,46,75],[42,28,43,75],[36,80,38,87],[39,80,41,87],[42,80,44,87],[45,80,47,87],[34,1,35,15],[37,1,38,15],[36,20,38,27],[36,28,37,75],[33,28,34,75],[33,80,35,87],[33,20,35,27],[30,80,32,87],[58,1,59,15],[52,1,53,15],[55,1,56,15],[46,1,47,15],[49,1,50,15],[40,1,41,15],[43,1,44,15],[42,20,44,27],[45,20,47,27],[48,80,50,87],[2,9,2,14],[3,9,4,14],[2,2,3,8],[28,1,29,15],[30,88,31,135],[27,88,28,135],[23,1,23,15],[19,50,21,90],[19,3,21,5],[19,6,20,7],[19,8,21,9],[19,10,20,11],[19,12,21,14],[19,15,21,49],[24,20,26,27],[24,15,26,19],[24,80,26,87],[24,88,25,135],[31,1,32,15],[27,20,29,27],[27,28,28,75],[5,12,5,13],[5,15,5,22],[5,23,5,26],[5,27,5,34],[5,35,5,38],[5,46,5,99],[5,100,6,135],[27,80,29,87],[15,10,15,135],[24,64,26,72],[24,73,26,79],[4,115,4,117],[4,121,4,123],[4,124,4,126],[6,46,6,81],[6,82,6,99],[7,46,9,81],[7,82,9,99],[7,100,8,135],[4,127,4,129],[4,130,4,132],[4,133,4,135],[4,88,4,90],[4,91,4,93],[4,94,4,96],[4,97,4,99],[4,100,4,102],[2,112,2,117],[2,118,2,135],[3,46,3,63],[3,64,3,72],[3,73,3,78],[3,79,4,81],[2,46,2,63],[2,64,2,72],[2,73,2,78],[2,79,2,81],[2,82,2,111],[3,124,3,126],[3,127,3,129],[3,130,3,132],[3,133,3,135],[4,85,4,87],[3,118,3,120],[3,121,3,123],[3,112,3,114],[3,115,3,117],[3,82,3,111],[4,103,4,105],[4,106,4,108],[4,109,4,111]]}
[]
[]
[null,null,null,null,null,null,null,null,null,null,null,null,null,null,null,null,null,null,null,null,null,null,null,null,null,null,null,null,null,null,null,null,null,null,null,null,null,null,null,null,null,null,null,null,null,null,"整理番号",null,null,null,null,null,null,null,null,null,null,null,null,null,null,null,null,null,"事務所",null,null,null,null,null,null,null,null,"処理\n区分",null,null,null,null,null,"区分",null,null,"事業者コード",null,null,null,null,null,null,null,null,null,null,null,null,null,null,null,null,null,null,null,null,null,null,null,null,null,null,null,null,null,"申告\n区分",null,null,null,null,null,"予備"]
[null,null,null,null,null,null,null,null,null,null,null,null,null,null,null,null,null,null,null,null,null,null,null,null,null,null,null,null,null,null,null,null,null,null,null,null,null,null,null,null,null,null,null,null,null,null,null,null,null,null,null,null,null,null,null,null,null,null,null,null,null,null,null,null,null,null,null,null,null,null,null,null,null,null,null,null,null,null,null,"ア",null,null,{"$f":"IF(提出用!CE4=\"\",\"\",提出用!CE4)","v":""},null,null,null,null,null,null,null,null,null,null,null,null,null,null,null,null,null,null,null,null,null,null,null,null,null,null,null,null,null,null,null,null,null,null,null,1,null,null,3]
[]
[]
[]
[]
[]
[]
[]
[]
[]
[]
[]
[]
[]
[]
[]
[null,null,null,null,null,null,{"$f":"IF(提出用!G20=\"\",\"\",提出用!G20)","v":""},null,null,null,{"$f":"IF(提出用!K20=\"\",\"\",提出用!K20)","v":""}]
[]
[]
[]
[]
[null,null,null,null,null,null,null,null,null,null,null,null,null,null,null,null,null,null,null,null,null,null,null,null,null,null,null,null,null,null,null,null,null,null,null,null,null,null,null,null,null,null,null,null,null,null,null,null,null,null,null,null,null,null,null,null,null,null,null,null,null,null,null,null,"イ",null,null,null,null,null,null,null,null,null,null,null,null,null,null,null,"01",null,null,null,null,null,null,null,{"$f":"IF(提出用!CK26=\"\",\"\",提出用!CK26)","v":""}]
[]
[]
[null,null,null,null,null,null,null,null,null,null,null,null,null,null,null,null,null,null,null,null,null,null,null,null,null,null,null,null,null,null,null,null,null,null,null,null,null,null,null,null,null,null,null,null,null,null,null,null,null,null,null,null,null,null,null,null,null,null,null,null,null,null,null,null,null,null,null,null,null,null,null,null,null,null,null,null,null,null,null,null,"02",null,null,null,null,null,null,null,{"$f":"IF(提出用!CK29=\"\",\"\",提出用!CK29)","v":""}]
[]
[]
[null,null,null,null,null,null,null,null,null,null,null,null,null,null,null,null,null,null,null,null,null,null,null,null,null,null,null,null,null,null,null,null,null,null,null,null,null,null,null,null,null,null,null,null,null,null,null,null,null,null,null,null,null,null,null,null,null,null,null,null,null,null,null,null,null,null,null,null,null,null,null,null,null,null,null,null,null,null,null,null,"03",null,null,null,null,null,null,null,{"$f":"IF(提出用!CK32=\"\",\"\",提出用!CK32)","v":""}]
[]
[]
[null,null,null,null,null,null,null,null,null,null,null,null,null,null,null,null,null,null,null,null,null,null,null,null,null,null,null,null,null,null,null,null,null,null,null,null,null,null,null,null,null,null,null,null,null,null,null,null,null,null,null,null,null,null,null,null,null,null,null,null,null,null,null,null,null,null,null,null,null,null,null,null,null,null,null,null,null,null,null,null,"04",null,null,null,null,null,null,null,{"$f":"IF(提出用!CK35=\"\",\"\",提出用!CK35)","v":""}]
[]
[]
[null,null,null,null,null,null,null,null,null,null,null,null,null,null,null,null,null,null,null,null,null,null,null,null,null,null,null,null,null,null,null,null,null,null,null,null,null,null,null,null,null,null,null,null,null,null,null,null,null,null,null,null,null,null,null,null,null,null,null,null,null,null,null,null,null,null,null,null,null,null,null,null,null,null,null,null,null,null,null,null,"05",null,null,null,null,null,null,null,{"$f":"IF(提出用!CK38=\"\",\"\",提出用!CK38)","v":""}]
[]
[]
[null,null,null,null,null,null,null,null,null,null,null,null,null,null,null,null,null,null,null,null,null,null,null,null,null,null,null,null,null,null,null,null,null,null,null,null,null,null,null,null,null,null,null,null,null,null,null,null,null,null,null,null,null,null,null,null,null,null,null,null,null,null,null,null,null,null,null,null,null,null,null,null,null,null,null,null,null,null,null,null,"06",null,null,null,null,null,null,null,{"$f":"IF(提出用!CK41=\"\",\"\",提出用!CK41)","v":""}]
[]
[]
[null,null,null,null,null,null,null,null,null,null,null,null,null,null,null,null,null,null,null,null,null,null,null,null,null,null,null,null,null,null,null,null,null,null,null,null,null,null,null,null,null,null,null,null,null,null,null,null,null,null,null,null,null,null,null,null,null,null,null,null,null,null,null,null,null,null,null,null,null,null,null,null,null,null,null,null,null,null,null,null,"07",null,null,null,null,null,null,null,{"$f":"IF(提出用!CK44=\"\",\"\",提出用!CK44)","v":""}]
[]
[]
[null,null,null,null,null,null,null,null,null,null,null,null,null,null,null,null,null,null,null,null,null,null,null,null,null,null,null,null,null,null,null,null,null,null,null,null,null,null,null,null,null,null,null,null,null,null,null,null,null,null,null,null,null,null,null,null,null,null,null,null,null,null,null,null,null,null,null,null,null,null,null,null,null,null,null,null,null,null,null,null,"08",null,null,null,null,null,null,null,{"$f":"IF(提出用!CK47=\"\",\"\",提出用!CK47)","v":""}]
[]
[]
[null,null,null,null,null,null,null,null,null,null,null,null,null,null,null,null,null,null,null,null,null,null,null,null,null,null,null,null,null,null,null,null,null,null,null,null,null,null,null,null,null,null,null,null,null,null,null,null,null,null,null,null,null,null,null,null,null,null,null,null,null,null,null,null,null,null,null,null,null,null,null,null,null,null,null,null,null,null,null,null,"09",null,null,null,null,null,null,null,{"$f":"IF(提出用!CK50=\"\",\"\",提出用!CK50)","v":""}]

{"sheet":"提出用控","index":3,"n_rows":53,"n_cols":122,"rows_kept":53,"cut":false,"hidden":false,"merged":[[15,3,17,9],[12,1,17,2],[13,10,13,63],[13,64,13,74],[13,75,13,89],[13,90,13,93],[13,94,13,108],[13,109,13,112],[13,113,13,127],[16,10,16,135],[15,10,15,135],[13,128,13,135],[12,3,13,9],[12,10,12,135],[51,1,52,21],[51,22,51,75],[51,76,51,91],[51,92,51,120],[31,88,31,135],[40,88,40,135],[34,88,34,135],[36,1,38,15],[39,1,41,15],[30,1,32,15],[30,16,32,21],[37,88,37,135],[33,1,35,15],[51,121,51,135],[52,22,52,42],[46,88,46,135],[49,88,49,135],[52,84,52,135],[52,43,52,83],[45,1,47,15],[48,1,50,15],[43,88,43,135],[42,16,44,21],[45,16,47,21],[48,16,50,21],[20,100,21,105],[19,3,21,5],[19,6,20,7],[19,8,21,9],[19,10,20,11],[19,12,21,14],[19,15,21,49],[19,50,21,83],[27,1,29,15],[24,1,26,15],[28,88,28,135],[25,88,25,135],[24,16,26,21],[27,16,29,21],[33,16,35,21],[36,16,38,21],[39,16,41,21],[42,1,44,15],[6,82,6,99],[7,46,9,81],[7,82,9,99],[7,100,8,135],[10,46,11,63],[10,64,11,81],[10,82,11,99],[10,100,11,117],[10,118,11,135],[4,85,4,87],[3,112,3,114],[3,115,3,117],[2,112,2,117],[2,118,2,135],[3,124,3,126],[3,118,3,120],[3,121,3,123],[4,127,4,129],[4,130,4,132],[4,133,4,135],[3,82,3,111],[4,103,4,105],[4,106,4,108],[4,109,4,111],[4,115,4,117],[4,121,4,123],[4,124,4,126],[4,88,4,90],[4,91,4,93],[4,94,4,96],[4,97,4,99],[4,100,4,102],[6,1,9,39],[14,3,14,9],[14,10,14,117],[5,35,5,38],[5,46,5,99],[5,100,6,135],[2,40,11,45],[3,46,3,63],[3,64,3,72],[3,73,3,78],[3,79,4,81],[3,127,3,129],[3,130,3,132],[6,46,6,81],[2,46,2,63],[2,64,2,72],[2,73,2,78],[2,79,2,81],[2,82,2,111],[5,12,5,13],[5,15,5,22],[5,23,5,26],[5,27,5,34],[3,133,3,135]]}
[]
[]
[null,null,null,null,null,null,null,null,null,null,null,null,null,null,null,null,null,null,null,null,null,null,null,null,null,null,null,null,null,null,null,null,null,null,null,null,null,null,null,null,"※処理事項",null,null,null,null,null,"整理番号",null,null,null,null,null,null,null,null,null,null,null,null,null,null,null,null,null,"事務所",null,null,null,null,null,null,null,null,"処理\n区分",null,null,null,null,null,"区分",null,null,"事業者コード",null,null,null,null,null,null,null,null,null,null,null,null,null,null,null,null,null,null,null,null,null,null,null,null,null,null,null,null,null,"申告\n区分",null,null,null,null,null,"予備"]
[null,null,null,null,null,null,null,null,null,null,null,null,null,null,null,null,null,null,null,null,null,null,null,null,null,null,null,null,null,null,null,null,null,null,null,null,null,null,null,null,null,null,null,null,null,null,null,null,null,null,null,null,null,null,null,null,null,null,null,null,null,null,null,null,null,null,null,null,null,null,null,null,null,null,null,null,null,null,null,null,null,null,{"$f":"IF(提出用!CE4=\"\",\"\",提出用!CE4)","v":""},null,null,null,null,null,null,null,null,null,null,null,null,null,null,null,null,null,null,null,null,null,null,null,null,null,null,null,null,null,null,null,null,null,null,null,1,null,null,3]
[]
[null,null,null,null,null,null,null,null,null,null,null,"令和",{"$f":"IF(提出用!M6=\"\",\"\",提出用!M6)","v":""},null,"年",{"$f":"IF(提出用!P6=\"\",\"\",提出用!P6)","v":""},null,{"$f":"IF(提出用!R6=\"\",\"\",提出用!R6)","v":""},null,{"$f":"IF(提出用!T6=\"\",\"\",提出用!T6)","v":""},null,{"$f":"IF(提出用!V6=\"\",\"\",提出用!V6)","v":""},null,"月",null,null,null,{"$f":"IF(提出用!AB6=\"\",\"\",提出用!AB6)","v":""},null,null,null,null,null,null,null,"日",null,null,null,null,null,null,null,null,null,null,"発信年月日",null,null,null,null,null,null,null,null,null,null,null,null,null,null,null,null,null,null,null,null,null,null,null,null,null,null,null,null,null,null,null,null,null,null,null,null,null,null,null,null,null,null,null,null,null,null,null,null,null,null,null,null,null,"申 告 年 月 日"]
[null,null,null,null,null,null,null,null,null,null,null,null,null,null,null,null,null,null,null,null,null,null,null,null,null,null,null,null,null,null,null,null,null,null,null,null,null,null,null,null,null,null,null,null,null,null,"通信日付印",null,null,null,null,null,null,null,null,null,null,null,null,null,null,null,null,null,null,null,null,null,null,null,null,null,null,null,null,null,null,null,null,null,null,null,"確認印"]
[]
[]
[]
[null,null,null,null,null,null,null,null,null,null,null,null,null,null,null,null,null,null,null,null,null,null,null,null,null,null,null,null,null,null,null,null,null,null,null,null,null,null,null,"東京都　港　都税事務所長殿"]
[]
[null,"申告者",null,"住所又は所在地",null,null,null,null,null,null,{"$f":"IF(提出用!K13=\"\",\"\",提出用!K13)","v":""}]
[null,null,null,null,null,null,null,null,null,null,null,null,null,null,null,null,null,null,null,null,null,null,null,null,null,null,null,null,null,null,null,null,null,null,null,null,null,null,null,null,null,null,null,null,null,null,null,null,null,null,null,null,null,null,null,null,null,null,null,null,null,null,null,null,"電話（",null,null,null,null,null,null,null,null,null,null,{"$f":"IF(提出用!BX14=\"\",\"\",提出用!BX14)","v":""},null,null,null,null,null,null,null,null,null,null,null,null,null,null,")",null,null,null,{"$f":"IF(提出用!CQ14=\"\",\"\",提出用!CQ14)","v":""},null,null,null,null,null,null,null,null,null,null,null,null,null,null,"-",null,null,null,{"$f":"IF(提出用!DJ14=\"\",\"\",提出用!DJ14)","v":""}]
[null,null,null,"氏名又は名称",null,null,null,null,null,null,{"$f":"IF(提出用!K15=\"\",\"\",提出用!K15)","v":""}]
[null,null,null,"個人番号\n又　は\n法人番号",null,null,null,null,null,null,"　　　　　　　↓個人番号の記載に当たっては、左端を空欄とし、ここから記載してください。"]
[null,null,null,null,null,null,null,null,null,null,{"$f":"IF(提出用!K17=\"\",\"\",提出用!K17)","v":""}]
[]
[]
[null,null,null,"令和",null,null,{"$f":"IF(提出用!G20=\"\",\"\",提出用!G20)","v":""},null,"年",null,{"$f":"IF(提出用!K20=\"\",\"\",提出用!K20)","v":""},null,"月分",null,null,"都たばこ税の",null,null,null,null,null,null,null,null,null,null,null,null,null,null,null,null,null,null,null,null,null,null,null,null,null,null,null,null,null,null,null,null,null,null,{"$f":"IF(提出用!AY20=\"\",\"\",提出用!AY20)","v":"申告書"}]
[null,null,null,null,null,null,null,null,null,null,null,null,null,null,null,null,null,null,null,null,null,null,null,null,null,null,null,null,null,null,null,null,null,null,null,null,null,null,null,null,null,null,null,null,null,null,null,null,null,null,null,null,null,null,null,null,null,null,null,null,null,null,null,null,null,null,null,null,null,null,null,null,null,null,null,null,null,null,null,null,null,null,null,null,null,null,null,null,null,null,null,null,null,null,null,null,null,null,null,null,"※"]
[]
[]
[]
[null,"課税標準数量",null,null,null,null,null,null,null,null,null,null,null,null,null,null,"①"]
[null,null,null,null,null,null,null,null,null,null,null,null,null,null,null,null,null,null,null,null,null,null,null,null,null,null,null,null,null,null,null,null,null,null,null,null,null,null,null,null,null,null,null,null,null,null,null,null,null,null,null,null,null,null,null,null,null,null,null,null,null,null,null,null,null,null,null,null,null,null,null,null,null,null,null,null,null,null,null,null,null,null,null,null,null,null,null,null,{"$f":"IF(提出用!CK26=\"\",\"\",提出用!CK26)","v":""}]
[]
[null,"税額",null,null,null,null,null,null,null,null,null,null,null,null,null,null,"②"]
[null,null,null,null,null,null,null,null,null,null,null,null,null,null,null,null,null,null,null,null,null,null,null,null,null,null,null,null,null,null,null,null,null,null,null,null,null,null,null,null,null,null,null,null,null,null,null,null,null,null,null,null,null,null,null,null,null,null,null,null,null,null,null,null,null,null,null,null,null,null,null,null,null,null,null,null,null,null,null,null,null,null,null,null,null,null,null,null,{"$f":"IF(提出用!CK29=\"\",\"\",提出用!CK29)","v":""}]
[]
[null,"課税免除を受けようとする本数"]
[null,null,null,null,null,null,null,null,null,null,null,null,null,null,null,null,null,null,null,null,null,null,null,null,null,null,null,null,null,null,null,null,null,null,null,null,null,null,null,null,null,null,null,null,null,null,null,null,null,null,null,null,null,null,null,null,null,null,null,null,null,null,null,null,null,null,null,null,null,null,null,null,null,null,null,null,null,null,null,null,null,null,null,null,null,null,null,null,{"$f":"IF(提出用!CK32=\"\",\"\",提出用!CK32)","v":""}]
[]
[null,"課税免除を受けようとする税額",null,null,null,null,null,null,null,null,null,null,null,null,null,null,"③"]
[null,null,null,null,null,null,null,null,null,null,null,null,null,null,null,null,null,null,null,null,null,null,null,null,null,null,null,null,null,null,null,null,null,null,null,null,null,null,null,null,null,null,null,null,null,null,null,null,null,null,null,null,null,null,null,null,null,null,null,null,null,null,null,null,null,null,null,null,null,null,null,null,null,null,null,null,null,null,null,null,null,null,null,null,null,null,null,null,{"$f":"IF(提出用!CK35=\"\",\"\",提出用!CK35)","v":""}]
[]
[null,"返還控除を受けようとする本数"]
[null,null,null,null,null,null,null,null,null,null,null,null,null,null,null,null,null,null,null,null,null,null,null,null,null,null,null,null,null,null,null,null,null,null,null,null,null,null,null,null,null,null,null,null,null,null,null,null,null,null,null,null,null,null,null,null,null,null,null,null,null,null,null,null,null,null,null,null,null,null,null,null,null,null,null,null,null,null,null,null,null,null,null,null,null,null,null,null,{"$f":"IF(提出用!CK38=\"\",\"\",提出用!CK38)","v":""}]
[]
[null,"返還控除を受けようとする金額",null,null,null,null,null,null,null,null,null,null,null,null,null,null,"④"]
[null,null,null,null,null,null,null,null,null,null,null,null,null,null,null,null,null,null,null,null,null,null,null,null,null,null,null,null,null,null,null,null,null,null,null,null,null,null,null,null,null,null,null,null,null,null,null,null,null,null,null,null,null,null,null,null,null,null,null,null,null,null,null,null,null,null,null,null,null,null,null,null,null,null,null,null,null,null,null,null,null,null,null,null,null,null,null,null,{"$f":"IF(提出用!CK41=\"\",\"\",提出用!CK41)","v":""}]
[]
[null,"差引（ ② － ③ － ④ ）",null,null,null,null,null,null,null,null,null,null,null,null,null,null,"➄"]
[null,null,null,null,null,null,null,null,null,null,null,null,null,null,null,null,null,null,null,null,null,null,null,null,null,null,null,null,null,null,null,null,null,null,null,null,null,null,null,null,null,null,null,null,null,null,null,null,null,null,null,null,null,null,null,null,null,null,null,null,null,null,null,null,null,null,null,null,null,null,null,null,null,null,null,null,null,null,null,null,null,null,null,null,null,null,null,null,{"$f":"IF(提出用!CK44=\"\",\"\",提出用!CK44)","v":""}]
[]
[null,"既 に 納 付 又 は 還 付 の\n確 定 し た 税 額 又 は 金 額",null,null,null,null,null,null,null,null,null,null,null,null,null,null,"⑥"]
[null,null,null,null,null,null,null,null,null,null,null,null,null,null,null,null,null,null,null,null,null,null,null,null,null,null,null,null,null,null,null,null,null,null,null,null,null,null,null,null,null,null,null,null,null,null,null,null,null,null,null,null,null,null,null,null,null,null,null,null,null,null,null,null,null,null,null,null,null,null,null,null,null,null,null,null,null,null,null,null,null,null,null,null,null,null,null,null,{"$f":"IF(提出用!CK47=\"\",\"\",提出用!CK47)","v":""}]
[]
[null,"この申告により納付すべき税額又は還付を\n受けようとする金額　（ ➄－ ⑥ ）"]
[null,null,null,null,null,null,null,null,null,null,null,null,null,null,null,null,null,null,null,null,null,null,null,null,null,null,null,null,null,null,null,null,null,null,null,null,null,null,null,null,null,null,null,null,null,null,null,null,null,null,null,null,null,null,null,null,null,null,null,null,null,null,null,null,null,null,null,null,null,null,null,null,null,null,null,null,null,null,null,null,null,null,null,null,null,null,null,null,{"$f":"IF(提出用!CK50=\"\",\"\",提出用!CK50)","v":""}]
[]
[null,"還付を受けようとする金融機関及び支払方法",null,null,null,null,null,null,null,null,null,null,null,null,null,null,null,null,null,null,null,null,{"$f":"IF(提出用!W52=\"\",\"\",提出用!W52)","v":""},null,null,null,null,null,null,null,null,null,null,null,null,null,null,null,null,null,null,null,null,null,null,null,null,null,null,null,null,null,null,null,null,null,null,null,null,null,null,null,null,null,null,null,null,null,null,null,null,null,null,null,null,null,"銀行",null,null,null,null,null,null,null,null,null,null,null,null,null,null,null,{"$f":"IF(提出用!CO52=\"\",\"\",提出用!CO52)","v":""},null,null,null,null,null,null,null,null,null,null,null,null,null,null,null,null,null,null,null,null,null,null,null,null,null,null,null,null,"支店"]
[null,null,null,null,null,null,null,null,null,null,null,null,null,null,null,null,null,null,null,null,null,null,"口座番号",null,null,null,null,null,null,null,null,null,null,null,null,null,null,null,null,null,null,null,null,"（　普通　・　当座　）",null,null,null,null,null,null,null,null,null,null,null,null,null,null,null,null,null,null,null,null,null,null,null,null,null,null,null,null,null,null,null,null,null,null,null,null,null,null,null,null,{"$f":"IF(提出用!CG53=\"\",\"\",提出用!CG53)","v":""}]